bitfinex/quotes_BTCUSD_20241001
["timestamp","ask_amount","ask_price","bid_price","bid_amount"]
[1727791394238,0.1564578,63129.0,63123.0,0.158418]
[1727791394487,0.54434378,63130.0,63111.0,0.316901]
[1727791394488,0.0787,63122.0,63111.0,0.316901]
[1727791394741,0.6316378,63121.0,63120.0,0.158428]
[1727791394966,0.6316378,63121.0,63099.0,0.35]
[1727791395197,0.47518,63121.0,63120.0,0.158428]
[1727791395445,0.47518,63121.0,63115.0,0.0406856]
[1727791395446,0.23870716,63120.0,63119.0,0.15843]
[1727791395700,0.316752,63120.0,63118.0,0.316862]
[1727791395964,0.316752,63120.0,63119.0,0.15843]
[1727791396449,0.316752,63120.0,63119.0,0.25843]
[1727791396679,0.320752,63120.0,63119.0,0.25843]
[1727791396912,0.316752,63120.0,63119.0,0.25843]
[1727791397648,0.316752,63120.0,63119.0,0.5535328]
[1727791397876,0.324752,63120.0,63119.0,0.5535328]
[1727791398608,0.329752,63120.0,63119.0,0.374075]
[1727791398839,0.324752,63120.0,63119.0,0.25843]
[1727791399090,0.316752,63120.0,63119.0,0.5924734]
[1727791399347,0.317752,63120.0,63119.0,0.5657878]
[1727791399580,0.317752,63120.0,63119.0,0.5557878]
[1727791399829,0.318752,63120.0,63119.0,0.5677878]
[1727791400086,0.318752,63120.0,63119.0,1.34979058]
[1727791400087,0.159322,63120.0,63119.0,1.34979058]
[1727791400348,0.23870716,63138.0,63137.0,0.258385]
[1727791400592,0.23870716,63138.0,63137.0,1.123617]
[1727791400845,0.23870716,63138.0,63137.0,0.258385]
[1727791401115,0.31460716,63153.0,63145.0,0.258365]
[1727791401339,0.31460716,63153.0,63117.0,0.24370716]
[1727791401340,0.193,63142.0,63135.0,0.1]
[1727791401572,0.1564578,63141.0,63135.0,0.1]
[1727791402036,0.50150278,63137.0,63135.0,0.1]
[1727791402267,0.50150278,63137.0,63126.0,0.23870716]
[1727791402268,0.1564578,63136.0,63126.0,0.23870716]
[1727791402531,0.1564578,63136.0,63124.0,0.316834]
[1727791402762,0.1564578,63136.0,63125.0,0.158415]
[1727791402763,0.158394,63134.0,63125.0,0.158415]
[1727791403019,0.1584578,63133.0,63119.0,0.004]
[1727791403244,0.316807,63130.0,63119.0,0.004]
[1727791403518,0.002,63127.0,63118.0,0.23870716]
[1727791403741,1.05271058,63126.0,63100.0,0.063472]
[1727791404016,0.4782528,63123.0,63108.0,0.316913]
[1727791404232,0.4782528,63123.0,63103.0,0.23870716]
[1727791404233,0.1614078,63123.0,63111.0,0.316897]
[1727791404473,0.36931036,63125.0,63105.0,0.158465]
[1727791404474,0.00495,63118.0,63105.0,0.158465]
[1727791404701,0.55085,63117.0,63107.0,0.316918]
[1727791404935,0.39715116,63114.0,63104.0,0.158466]
[1727791405155,0.1564578,63116.0,63103.0,0.316938]
[1727791405156,1.05271058,63113.0,63103.0,0.316938]
[1727791405404,1.05271058,63113.0,63103.0,0.316939]
[1727791405639,1.15721443,63113.0,63097.0,0.23870716]
[1727791405876,0.16045,63111.0,63097.0,0.23870716]
[1727791406169,0.32189,63104.0,63094.0,0.23870716]
[1727791406414,0.23654284,63103.0,63094.0,0.23870716]
[1727791406645,0.23654284,63103.0,63102.0,0.158473]
[1727791407371,0.0763,63102.0,63088.0,0.317015]
[1727791407603,0.0763,63102.0,63076.0,0.065136]
[1727791407604,0.39795064,63101.0,63089.0,0.23870716]
[1727791407836,0.39795064,63101.0,63094.0,0.001]
[1727791408071,0.28939765,63100.0,63092.0,0.158497]
[1727791408309,0.28939765,63100.0,63081.0,0.23870716]
[1727791408310,0.39300064,63099.0,63081.0,0.23870716]
[1727791408541,0.1614078,63097.0,63080.0,0.317053]
[1727791408769,0.42100278,63086.0,63085.0,0.160158]
[1727791409004,0.81400342,63086.0,63085.0,0.001642]
[1727791409247,0.47370064,63086.0,63085.0,0.160158]
[1727791409474,0.22785471,63086.0,63085.0,0.160158]
[1727791410190,0.22785471,63086.0,63085.0,0.260158]
[1727791410191,0.22885471,63086.0,63085.0,0.260158]
[1727791410880,0.22785471,63086.0,63085.0,0.260158]
[1727791411143,0.38431251,63086.0,63085.0,0.101642]
[1727791411415,0.38431251,63086.0,63085.0,0.263158]
[1727791411658,0.38431251,63086.0,63085.0,0.104642]
[1727791411920,0.54282551,63086.0,63085.0,0.004642]
[1727791412169,0.38431251,63086.0,63085.0,0.004642]
[1727791412873,0.49922994,63086.0,63085.0,0.004642]
[1727791413104,0.38431251,63086.0,63085.0,0.004642]
[1727791413343,0.38431251,63086.0,63085.0,0.002642]
[1727791413815,0.38431251,63086.0,63085.0,0.003642]
[1727791414049,0.38431251,63086.0,63085.0,0.001642]
[1727791414979,0.38431251,63086.0,63085.0,0.002642]
[1727791414980,0.39331251,63086.0,63085.0,0.002642]
[1727791415453,0.65179204,63086.0,63085.0,0.002642]
[1727791415685,1.01263284,63086.0,63085.0,0.002642]
[1727791415912,0.91266631,63086.0,63085.0,0.002642]
[1727791416146,0.90861631,63086.0,63085.0,0.002642]
[1727791416405,0.90861631,63086.0,63076.0,0.001642]
[1727791416406,0.158536,63077.0,63076.0,0.001642]
[1727791416648,0.46671251,63077.0,63076.0,0.001642]
[1727791418077,0.39731251,63077.0,63076.0,0.002642]
[1727791418305,0.39731251,63077.0,63076.0,0.26118]
[1727791418556,0.39731251,63077.0,63076.0,0.26018]
[1727791419326,0.22785471,63077.0,63076.0,0.26018]
[1727791419552,0.23485471,63077.0,63076.0,0.26018]
[1727791420013,0.23485471,63077.0,63076.0,0.26118]
[1727791420014,0.39231251,63077.0,63076.0,0.26118]
[1727791420471,0.39231251,63077.0,63076.0,0.26018]
[1727791420472,0.38431251,63077.0,63076.0,0.26018]
[1727791420756,0.39231251,63077.0,63076.0,0.002642]
[1727791420983,0.38531251,63077.0,63076.0,0.001642]
[1727791421215,0.40745787,63077.0,63076.0,0.001642]
[1727791421448,0.57294387,63077.0,63076.0,0.001642]
[1727791421674,0.64754387,63077.0,63076.0,0.001642]
[1727791421902,0.62539851,63077.0,63076.0,0.001642]
[1727791422363,0.63239851,63077.0,63076.0,0.002642]
[1727791422821,0.63139851,63077.0,63076.0,0.002642]
[1727791423058,0.46791251,63077.0,63076.0,0.002642]
[1727791423290,0.39731251,63077.0,63076.0,0.16118]
[1727791423731,0.38431251,63077.0,63076.0,0.26018]
[1727791423956,0.40831251,63077.0,63076.0,0.26118]
[1727791424205,0.39531251,63077.0,63076.0,0.26018]
[1727791424692,0.39731251,63077.0,63076.0,0.26018]
[1727791424918,0.38631251,63077.0,63076.0,0.26018]
[1727791425951,0.22985471,63077.0,63076.0,0.26018]
[1727791426168,0.23185471,63077.0,63076.0,0.26018]
[1727791426385,0.22985471,63077.0,63076.0,0.26018]
[1727791426611,0.22785471,63077.0,63076.0,0.26018]
[1727791426834,0.38731251,63077.0,63076.0,0.26018]
[1727791427048,0.23085471,63077.0,63076.0,0.26018]
[1727791427270,0.22785471,63077.0,63076.0,0.26018]
[1727791427491,0.22785471,63077.0,63076.0,0.26418]
[1727791427938,0.22885471,63077.0,63076.0,0.26018]
[1727791428419,0.22885471,63077.0,63076.0,0.26118]
[1727791428865,0.22885471,63077.0,63076.0,0.28418]
[1727791429082,0.22885471,63077.0,63076.0,0.55994]
[1727791429315,0.06931971,63077.0,63076.0,0.7163978]
[1727791429531,0.06931971,63077.0,63076.0,0.7481778]
[1727791429742,0.06931971,63077.0,63076.0,0.7471778]
[1727791429966,0.06931971,63077.0,63076.0,1.0297186]
[1727791429967,7.1e-07,63077.0,63076.0,1.0297186]
[1727791430187,7.1e-07,63077.0,63076.0,0.7539586]
[1727791430447,7.1e-07,63077.0,63076.0,0.28318]
[1727791430653,0.00100071,63077.0,63076.0,0.29718]
[1727791431096,0.00100071,63077.0,63076.0,0.28318]
[1727791431340,0.00200071,63077.0,63076.0,0.17418]
[1727791431837,0.00100071,63077.0,63076.0,0.16018]
[1727791432065,0.15745851,63077.0,63076.0,0.16018]
[1727791432503,0.15745851,63077.0,63076.0,0.26018]
[1727791433163,0.15745851,63077.0,63076.0,0.27418]
[1727791433387,0.15645851,63077.0,63076.0,0.26018]
[1727791433614,0.00100071,63077.0,63076.0,0.26018]
[1727791434066,7.1e-07,63077.0,63076.0,0.26018]
[1727791434341,0.15645851,63077.0,63076.0,0.26118]
[1727791434530,0.16945851,63077.0,63076.0,0.26118]
[1727791434761,0.16245851,63077.0,63076.0,0.26018]
[1727791434991,0.15745851,63077.0,63076.0,0.26818]
[1727791436580,0.15645851,63077.0,63076.0,0.26018]
[1727791436800,0.15645851,63077.0,63076.0,0.26118]
[1727791439053,0.53206851,63077.0,63076.0,0.26118]
[1727791439508,0.53206851,63077.0,63076.0,0.26018]
[1727791439972,0.53606851,63077.0,63076.0,0.26018]
[1727791440429,0.59267536,63077.0,63076.0,0.001642]
[1727791440643,0.53206851,63077.0,63076.0,0.001642]
[1727791440905,0.53406851,63077.0,63076.0,0.001642]
[1727791441159,0.69755451,63077.0,63076.0,0.001642]
[1727791441376,0.88715451,63077.0,63076.0,0.001642]
[1727791441585,1.04360129,63077.0,63076.0,0.001642]
[1727791441807,0.72366851,63077.0,63076.0,0.001642]
[1727791442079,0.72766851,63077.0,63076.0,0.001642]
[1727791442307,0.317102,63071.0,63064.0,0.001642]
[1727791442549,0.73766851,63077.0,63064.0,0.001642]
[1727791442550,0.158566,63065.0,63064.0,0.001642]
[1727791442765,0.7906338,63065.0,63064.0,0.001642]
[1727791443008,0.6320678,63065.0,63064.0,0.001642]
[1727791443751,0.6340678,63065.0,63064.0,0.001642]
[1727791443995,0.01495,63064.0,63063.0,0.001644]
[1727791444231,0.01495,63064.0,63055.0,0.001642]
[1727791444232,0.173539,63056.0,63055.0,0.001642]
[1727791444473,0.173549,63052.0,63035.0,0.39734716]
[1727791444717,0.173561,63047.0,63034.0,0.27410432]
[1727791444948,0.91991168,63047.0,63034.0,0.27410432]
[1727791445163,0.00495,63035.0,63034.0,0.001642]
[1727791445388,1.0644586,63035.0,63034.0,0.001642]
[1727791445863,0.7859178,63035.0,63034.0,0.001642]
[1727791446537,0.7909178,63035.0,63034.0,0.001642]
[1727791446969,1.078909,63035.0,63034.0,0.001642]
[1727791447214,0.6020178,63035.0,63034.0,0.001642]
[1727791447454,0.6020178,63035.0,63034.0,0.160286]
[1727791447879,0.47561,63035.0,63034.0,0.160286]
[1727791448342,0.47561,63035.0,63034.0,0.265286]
[1727791448586,0.48061,63035.0,63034.0,0.265286]
[1727791448817,0.48561,63035.0,63034.0,0.959343]
[1727791449052,0.48561,63035.0,63034.0,0.416586]
[1727791449507,0.48061,63035.0,63034.0,0.416586]
[1727791449794,0.47661,63035.0,63034.0,0.5730438]
[1727791450033,0.47861,63035.0,63034.0,0.6048238]
[1727791450252,0.47561,63035.0,63034.0,0.6048238]
[1727791450715,0.47761,63035.0,63034.0,0.6158238]
[1727791450945,0.31897,63035.0,63034.0,0.6158238]
[1727791451185,0.31797,63035.0,63034.0,0.6068238]
[1727791451453,0.31897,63035.0,63034.0,2.5154968]
[1727791451686,0.31897,63035.0,63034.0,2.5134968]
[1727791451911,0.31897,63035.0,63034.0,1.7334968]
[1727791452147,0.31897,63035.0,63034.0,1.390642]
[1727791452383,0.31797,63035.0,63034.0,0.179286]
[1727791452835,0.4744278,63035.0,63034.0,0.162286]
[1727791453062,0.31797,63035.0,63034.0,0.162286]
[1727791453333,0.31897,63035.0,63034.0,0.176286]
[1727791453570,0.31897,63035.0,63034.0,0.162286]
[1727791453571,0.31797,63035.0,63034.0,0.162286]
[1727791454025,0.31697,63035.0,63034.0,0.167286]
[1727791454268,0.31897,63035.0,63034.0,0.169286]
[1727791454485,0.31797,63035.0,63034.0,0.167286]
[1727791454713,0.31897,63035.0,63034.0,0.174286]
[1727791454949,0.31897,63035.0,63034.0,0.940373]
[1727791455204,0.31897,63035.0,63034.0,0.56547]
[1727791455428,0.31897,63035.0,63034.0,0.7449278]
[1727791455429,0.255514,63035.0,63034.0,0.7449278]
[1727791455671,0.255514,63035.0,63034.0,0.7747078]
[1727791455672,0.15933,63035.0,63034.0,0.7747078]
[1727791455894,0.095874,63035.0,63034.0,0.7767078]
[1727791456163,0.00169,63035.0,63034.0,0.7439278]
[1727791456401,0.23870716,63048.0,63034.0,0.5972838]
[1727791456645,0.23870716,63048.0,63047.0,0.286611]
[1727791456880,0.08009716,63048.0,63047.0,3.7437298]
[1727791457113,0.23870716,63064.0,63054.0,0.158594]
[1727791457423,0.23870716,63064.0,63054.0,0.286594]
[1727791457587,0.23870716,63064.0,63055.0,0.1]
[1727791457815,0.23870716,63056.0,63055.0,0.258591]
[1727791458042,0.1564578,63063.0,63062.0,0.258574]
[1727791458476,0.1564578,63063.0,63053.0,0.005]
[1727791458695,0.1564578,63063.0,63054.0,0.1]
[1727791458964,0.1564578,63063.0,63062.0,0.158574]
[1727791459353,0.1564578,63063.0,63056.0,0.47576]
[1727791459571,0.1564578,63063.0,63062.0,0.158574]
[1727791459789,0.1564578,63063.0,63059.0,0.634322]
[1727791460018,0.6321778,63063.0,63058.0,0.317167]
[1727791460247,0.6321778,63063.0,63061.0,0.158575]
[1727791460471,0.6401778,63063.0,63062.0,0.001]
[1727791461160,1.06255201,63063.0,63062.0,0.001]
[1727791461617,0.075,63062.0,63052.0,0.1]
[1727791461853,0.075,63062.0,63056.0,0.1]
[1727791461854,0.6321778,63061.0,63056.0,0.1]
[1727791462091,0.002,63060.0,63054.0,0.01]
[1727791462307,0.6321778,63059.0,63054.0,0.01]
[1727791462537,0.6321778,63059.0,63051.0,0.1]
[1727791462771,0.07996756,63058.0,63052.0,0.001]
[1727791462981,0.42237421,63055.0,63052.0,0.001]
[1727791463208,0.3910538,63053.0,63052.0,0.001]
[1727791463426,0.7081778,63053.0,63052.0,0.001]
[1727791463654,0.7081778,63053.0,63052.0,0.159599]
[1727791463940,0.7081778,63053.0,63052.0,0.001]
[1727791464156,0.8894778,63053.0,63052.0,0.001]
[1727791464368,0.8914778,63053.0,63052.0,0.001]
[1727791464600,0.002,63052.0,63046.0,0.158613]
[1727791464822,0.6321778,63051.0,63048.0,0.001646]
[1727791465740,0.1564578,63049.0,63048.0,0.001646]
[1727791465960,0.70402789,63049.0,63048.0,0.001646]
[1727791466389,0.6321778,63049.0,63048.0,0.002646]
[1727791466632,0.6321778,63049.0,63048.0,0.161255]
[1727791467298,0.6391778,63049.0,63048.0,0.161255]
[1727791467752,0.6321778,63049.0,63048.0,0.161255]
[1727791468002,0.6321778,63049.0,63048.0,0.160255]
[1727791468227,0.6371778,63049.0,63048.0,0.161255]
[1727791468658,0.6321778,63049.0,63048.0,0.160255]
[1727791468890,0.6371778,63049.0,63048.0,0.161255]
[1727791469774,0.48072,63049.0,63048.0,0.266255]
[1727791470003,0.48672,63049.0,63048.0,0.417975]
[1727791470439,0.328115,63049.0,63048.0,0.5744328]
[1727791470646,0.328115,63049.0,63048.0,0.8658128]
[1727791470865,0.290394,63049.0,63048.0,0.8658128]
[1727791471103,0.23870716,63061.0,63060.0,0.005]
[1727791471344,0.23870716,63075.0,63067.0,0.288561]
[1727791471627,0.19431961,63068.0,63067.0,3.77905651]
[1727791471859,0.000823,63077.0,63067.0,3.77905651]
[1727791471860,0.000823,63077.0,63076.0,0.005]
[1727791472082,0.000823,63077.0,63076.0,0.99336]
[1727791472305,0.000823,63077.0,63076.0,3.80293821]
[1727791472525,0.000823,63077.0,63076.0,3.37067601]
[1727791472786,0.000823,63077.0,63076.0,1.63292601]
[1727791474130,0.000823,63077.0,63076.0,1.2105518]
[1727791474670,0.000823,63086.0,63084.0,0.005]
[1727791474904,0.20871971,63103.0,63102.0,0.263473]
[1727791475146,0.20871971,63103.0,63102.0,0.29164128]
[1727791475388,0.20871971,63103.0,63102.0,0.286473]
[1727791475639,0.23870716,63110.0,63109.0,0.258456]
[1727791476087,0.23870716,63110.0,63109.0,0.496469]
[1727791476332,0.076,63124.0,63116.0,0.258438]
[1727791476805,0.076,63124.0,63118.0,0.258433]
[1727791477468,0.1572808,63119.0,63118.0,0.258433]
[1727791478139,0.1572808,63119.0,63114.0,0.316882]
[1727791478157,0.1572808,63119.0,63098.0,0.23870716]
[1727791478158,0.1896,63118.0,63109.0,0.01]
[1727791478371,0.1896,63118.0,63102.0,0.005]
[1727791478372,0.3460578,63118.0,63112.0,0.158447]
[1727791478600,0.002,63114.0,63108.0,0.158456]
[1727791478831,0.3460578,63118.0,63098.0,0.55567016]
[1727791478832,0.1564578,63113.0,63098.0,0.55567016]
[1727791479068,0.57883201,63113.0,63109.0,0.158454]
[1727791479299,0.1564578,63113.0,63109.0,0.159454]
[1727791479520,0.1564578,63113.0,63109.0,0.158454]
[1727791479744,0.47535,63112.0,63109.0,0.158454]
[1727791479984,0.47535,63112.0,63107.0,0.15846]
[1727791479985,0.1564578,63111.0,63107.0,0.15846]
[1727791480217,0.158456,63109.0,63098.0,0.23870716]
[1727791480467,0.7144078,63110.0,63099.0,0.1]
[1727791480468,0.1564578,63107.0,63099.0,0.1]
[1727791480695,0.002,63100.0,63096.0,0.158488]
[1727791480925,0.6318078,63099.0,63096.0,0.316973]
[1727791481163,0.1976,63097.0,63083.0,0.005]
[1727791481382,0.1976,63097.0,63075.0,0.317082]
[1727791481383,0.6318078,63096.0,63095.0,0.158491]
[1727791482533,0.6318078,63096.0,63085.0,0.31703]
[1727791482534,0.6338078,63096.0,63093.0,0.158494]
[1727791482757,0.23870716,63094.0,63086.0,0.1]
[1727791482980,0.1564578,63092.0,63086.0,0.1]
[1727791483271,0.47535,63091.0,63086.0,0.1]
[1727791483491,0.22734858,63090.0,63086.0,0.258513]
[1727791483728,0.47535,63089.0,63088.0,0.158508]
[1727791483955,0.6318078,63089.0,63088.0,0.158508]
[1727791484847,0.47535,63089.0,63088.0,0.263508]
[1727791485305,0.48235,63089.0,63088.0,0.9517297]
[1727791485551,0.418948,63089.0,63088.0,1.52939201]
[1727791485799,0.418948,63089.0,63088.0,1.52639201]
[1727791486062,0.424948,63089.0,63088.0,1.18229101]
[1727791486286,0.417948,63089.0,63088.0,0.462562]
[1727791486530,0.411948,63089.0,63088.0,0.461562]
[1727791486769,0.412948,63089.0,63088.0,0.467562]
[1727791487247,0.411948,63089.0,63088.0,0.461562]
[1727791487480,0.411948,63089.0,63088.0,0.6200198]
[1727791488222,0.411948,63089.0,63088.0,0.6180198]
[1727791488706,0.25085808,63089.0,63088.0,0.9890198]
[1727791488933,0.09235308,63089.0,63088.0,0.9880198]
[1727791489191,0.03627608,63089.0,63088.0,0.71315145]
[1727791489433,0.03527608,63089.0,63088.0,0.6370198]
[1727791489705,0.03627608,63089.0,63088.0,0.6450198]
[1727791490164,8e-08,63089.0,63088.0,0.6450198]
[1727791490415,8e-08,63089.0,63088.0,0.4699658]
[1727791491119,8e-08,63089.0,63088.0,0.4749658]
[1727791491350,8e-08,63089.0,63088.0,0.4699658]
[1727791492289,8e-08,63089.0,63088.0,0.4649658]
[1727791493724,8e-08,63089.0,63088.0,0.308508]
[1727791495390,8e-08,63089.0,63088.0,0.4649658]
[1727791497481,8e-08,63089.0,63088.0,0.308508]
[1727791497717,8e-08,63089.0,63088.0,0.285508]
[1727791498199,8e-08,63089.0,63088.0,0.180508]
[1727791498719,0.15645788,63089.0,63088.0,0.166508]
[1727791498958,0.3454578,63089.0,63088.0,0.01]
[1727791499204,0.1979,63088.0,63077.0,0.317072]
[1727791499434,0.1564578,63087.0,63086.0,0.158513]
[1727791500613,0.1564578,63087.0,63068.0,0.001646]
[1727791500614,0.317038,63084.0,63068.0,0.001646]
[1727791500824,0.158549,63072.0,63069.0,0.23870716]
[1727791501050,0.08,63068.0,63061.0,0.23870716]
[1727791501345,0.1564578,63063.0,63059.0,0.09399467]
[1727791501589,0.43903037,63060.0,63059.0,0.09399467]
[1727791501807,0.158584,63058.0,63050.0,0.23870716]
[1727791502033,0.2817,63060.0,63056.0,0.158589]
[1727791502034,0.23703284,63057.0,63056.0,0.158589]
[1727791502468,0.23703284,63057.0,63056.0,0.20076565]
[1727791502704,0.23703284,63057.0,63056.0,0.90354565]
[1727791502923,0.23703284,63057.0,63056.0,0.438564]
[1727791503142,0.23703284,63057.0,63056.0,0.163589]
[1727791503578,0.24203284,63057.0,63056.0,0.163589]
[1727791503839,0.24603284,63057.0,63056.0,0.263589]
[1727791504718,0.24603284,63057.0,63056.0,0.258589]
[1727791504933,0.39749064,63057.0,63056.0,0.258589]
[1727791505168,0.4614997,63057.0,63056.0,0.158589]
[1727791505390,0.39349064,63057.0,63056.0,0.158589]
[1727791505608,0.23703284,63057.0,63056.0,0.163589]
[1727791505835,0.23703284,63057.0,63056.0,0.158589]
[1727791505836,0.24203284,63057.0,63056.0,0.158589]
[1727791506287,0.23703284,63057.0,63056.0,0.258589]
[1727791506584,0.23703284,63057.0,63056.0,0.259589]
[1727791506801,0.39849064,63057.0,63056.0,0.259589]
[1727791507480,0.4565997,63057.0,63050.0,0.317208]
[1727791507734,0.1564578,63056.0,63051.0,0.317202]
[1727791507951,0.1564578,63056.0,63046.0,0.317226]
[1727791507952,0.23703284,63055.0,63053.0,0.158595]
[1727791508199,0.1564578,63054.0,63053.0,0.158596]
[1727791508437,0.39349064,63054.0,63053.0,0.158596]
[1727791508713,0.39349064,63054.0,63053.0,0.163596]
[1727791508714,0.23703284,63054.0,63053.0,0.163596]
[1727791508966,0.23703284,63054.0,63053.0,0.32377265]
[1727791509259,0.23703284,63054.0,63053.0,1.47016465]
[1727791509475,0.23703284,63054.0,63053.0,0.286596]
[1727791509700,0.23703284,63054.0,63053.0,0.511188]
[1727791509925,0.23293322,63054.0,63053.0,0.448144]
[1727791510423,0.22593322,63054.0,63053.0,0.448144]
[1727791510908,0.22593322,63054.0,63053.0,0.449144]
[1727791510909,0.22693322,63054.0,63053.0,0.449144]
[1727791511361,0.22693322,63054.0,63053.0,0.264596]
[1727791511587,0.22793322,63054.0,63053.0,0.267596]
[1727791511855,0.22793322,63054.0,63053.0,0.44005565]
[1727791512082,0.22793322,63054.0,63053.0,0.402879]
[1727791512340,0.22693322,63054.0,63053.0,0.5563368]
[1727791512579,0.22693322,63054.0,63053.0,0.99429345]
[1727791512580,0.03253822,63054.0,63053.0,0.99429345]
[1727791512810,0.31880716,63080.0,63072.0,0.263548]
[1727791513038,0.31880716,63080.0,63072.0,0.258548]
[1727791513501,0.31880716,63080.0,63075.0,0.317081]
[1727791513749,0.31880716,63080.0,63074.0,0.317084]
[1727791513966,0.1827,63079.0,63075.0,0.317081]
[1727791514306,0.1564578,63078.0,63074.0,0.317084]
[1727791514403,0.1564578,63078.0,63076.0,0.158538]
[1727791514879,0.1564578,63078.0,63077.0,0.158536]
[1727791515639,0.1564578,63078.0,63075.0,0.47562]
[1727791515883,0.1564578,63078.0,63071.0,0.317101]
[1727791515884,0.1654578,63078.0,63076.0,0.001]
[1727791516129,0.1564578,63078.0,63074.0,0.158542]
[1727791516359,0.47562,63077.0,63075.0,0.15854]
[1727791516611,0.1564578,63076.0,63075.0,0.15854]
[1727791517105,0.6320778,63076.0,63075.0,0.15954]
[1727791517360,1.0541715,63076.0,63062.0,0.005]
[1727791517598,1.0541715,63076.0,63074.0,0.158542]
[1727791518099,1.0541715,63076.0,63072.0,0.317095]
[1727791518100,0.39516496,63075.0,63070.0,0.158552]
[1727791518361,0.1564578,63075.0,63070.0,0.158552]
[1727791518612,0.1564578,63075.0,63069.0,0.1]
[1727791518613,0.47562,63074.0,63069.0,0.1]
[1727791518860,0.47562,63074.0,63073.0,0.158546]
[1727791519383,0.27562,63074.0,63073.0,0.263546]
[1727791519628,0.27562,63074.0,63073.0,0.258546]
[1727791519855,0.27562,63074.0,63073.0,0.263546]
[1727791520098,0.27562,63074.0,63073.0,0.614446]
[1727791520343,0.27562,63074.0,63073.0,0.550223]
[1727791520574,0.27562,63074.0,63073.0,0.286546]
[1727791521049,0.27562,63074.0,63073.0,1.184449]
[1727791521295,0.27562,63074.0,63073.0,0.561503]
[1727791521522,0.28062,63074.0,63073.0,0.263546]
[1727791521774,0.28062,63074.0,63073.0,0.258546]
[1727791522136,0.03562,63074.0,63073.0,0.263546]
[1727791522396,0.03562,63074.0,63073.0,0.286546]
[1727791522630,0.03062,63074.0,63073.0,0.286546]
[1727791522863,0.03062,63074.0,63073.0,1.045914]
[1727791523098,0.02562,63074.0,63073.0,1.295832]
[1727791523320,0.02762,63074.0,63073.0,1.308832]
[1727791523549,0.02762,63074.0,63073.0,1.292026]
[1727791523773,0.02762,63074.0,63073.0,1.294026]
[1727791524039,0.02662,63074.0,63073.0,1.286026]
[1727791524289,0.02662,63074.0,63073.0,0.270546]
[1727791524548,0.02762,63074.0,63073.0,0.281546]
[1727791525038,0.02662,63074.0,63073.0,0.274546]
[1727791525555,0.02762,63074.0,63073.0,0.288546]
[1727791525808,0.02662,63074.0,63073.0,0.274546]
[1727791526288,0.02662,63074.0,63073.0,0.270546]
[1727791526547,0.02662,63074.0,63073.0,0.265546]
[1727791526804,0.02762,63074.0,63073.0,0.276546]
[1727791527269,0.02662,63074.0,63073.0,0.270546]
[1727791527523,0.02662,63074.0,63073.0,0.265546]
[1727791527775,0.02762,63074.0,63073.0,0.271546]
[1727791528294,0.1840778,63074.0,63073.0,0.271546]
[1727791528535,0.2628778,63074.0,63073.0,0.173192]
[1727791528762,0.28128558,63074.0,63073.0,0.014646]
[1727791529001,0.28028558,63074.0,63073.0,0.007646]
[1727791529235,0.002,63066.0,63050.0,0.005]
[1727791529693,0.1820778,63065.0,63060.0,0.23870716]
[1727791529922,0.1820778,63065.0,63055.0,0.317182]
[1727791529923,0.1564578,63061.0,63055.0,0.158591]
[1727791530183,0.02562,63060.0,63054.0,0.317185]
[1727791530428,0.02562,63060.0,63053.0,0.001646]
[1727791530429,0.1564578,63059.0,63053.0,0.001646]
[1727791530663,0.02562,63058.0,63055.0,0.15859]
[1727791530917,0.1564578,63057.0,63053.0,0.001646]
[1727791531175,0.02562,63056.0,63053.0,0.001646]
[1727791531418,0.1564578,63055.0,63053.0,0.001646]
[1727791531662,0.1564578,63055.0,63054.0,0.132974]
[1727791532134,0.1564578,63055.0,63048.0,0.318863]
[1727791532399,0.64788358,63055.0,63053.0,0.001]
[1727791532637,0.158606,63049.0,63048.0,0.001646]
[1727791532874,0.47578,63049.0,63048.0,0.001646]
[1727791533109,0.48079674,63049.0,63048.0,0.001646]
[1727791533477,0.71465241,63049.0,63048.0,0.001646]
[1727791533489,1.13867084,63049.0,63048.0,0.002646]
[1727791533709,1.29312864,63049.0,63048.0,0.002646]
[1727791533960,0.71250421,63049.0,63048.0,0.001646]
[1727791534380,0.71250421,63049.0,63048.0,0.002646]
[1727791534381,0.80986054,63049.0,63048.0,0.002646]
[1727791534598,0.80986054,63049.0,63041.0,0.07079522]
[1727791534599,0.002,63043.0,63041.0,0.07079522]
[1727791534847,1.0623618,63042.0,63041.0,0.07079522]
[1727791535062,1.06742523,63042.0,63041.0,0.07079522]
[1727791535271,0.91080123,63042.0,63041.0,0.07079522]
[1727791535487,0.90880123,63042.0,63041.0,0.07079522]
[1727791535704,1.06524801,63042.0,63041.0,0.07079522]
[1727791535917,0.90880123,63042.0,63041.0,0.07079522]
[1727791536347,0.90880123,63042.0,63037.0,0.158635]
[1727791536560,0.90880123,63042.0,63034.0,0.318928]
[1727791536561,0.92080123,63042.0,63041.0,0.001]
[1727791536788,1.06632865,63042.0,63034.0,0.001642]
[1727791537014,0.002,63038.0,63034.0,0.001642]
[1727791537300,0.58066043,63035.0,63034.0,0.001642]
[1727791537503,1.05425623,63035.0,63034.0,0.001642]
[1727791537717,1.06128252,63035.0,63034.0,0.001642]
[1727791537921,1.21400037,63035.0,63034.0,0.001642]
[1727791538145,1.21400037,63035.0,63024.0,0.001644]
[1727791538146,0.002,63030.0,63024.0,0.001644]
[1727791538363,0.1564578,63025.0,63024.0,0.001644]
[1727791538574,0.6322378,63025.0,63024.0,0.001644]
[1727791538784,0.63725954,63025.0,63024.0,0.001644]
[1727791539847,0.63925954,63025.0,63024.0,0.001644]
[1727791540057,0.63725954,63025.0,63024.0,0.001644]
[1727791541487,0.63825954,63025.0,63024.0,0.001644]
[1727791541931,0.65025954,63025.0,63024.0,0.001644]
[1727791542179,1.06692654,63025.0,63024.0,0.001644]
[1727791542401,1.06892654,63025.0,63024.0,0.001644]
[1727791542611,1.06892654,63025.0,63022.0,0.001644]
[1727791542612,0.158672,63023.0,63022.0,0.001644]
[1727791542829,0.7909098,63023.0,63022.0,0.001644]
[1727791543033,0.79587111,63023.0,63022.0,0.001644]